fUSD/lending_fUSD_20260524
["ID","MTS","AMOUNT","RATE_DAILY","PERIOD"]
[422922596,1779634242000,-166.73,0.00019218,2]
[422922602,1779634242000,-10000.0,0.00019652,2]
[422922611,1779634242000,-215.09191753,0.00019676,2]
[422922601,1779634242000,-560.38385811,0.00019652,2]
[422922603,1779634242000,-10000.0,0.00019652,2]
[422922612,1779634242000,-215.09191753,0.00019676,2]
[422922604,1779634242000,-10000.0,0.00019652,2]
[422922605,1779634242000,-10000.0,0.00019652,2]
[422922648,1779634242000,-746.52,0.000209,2]
[422922608,1779634242000,-10000.0,0.00019652,2]
[422922606,1779634242000,-10000.0,0.00019652,2]
[422922610,1779634242000,-215.09191753,0.00019676,2]
[422922609,1779634242000,-5818.71491346,0.00019652,2]
[422922620,1779634242000,-5444.72417776,0.000199,2]
[422922623,1779634242000,-165.0,0.0002,2]
[422922621,1779634242000,-478.0,0.00019963,2]
[422922622,1779634242000,-955.47374883,0.0002,2]
[422922624,1779634242000,-272.0,0.0002,2]
[422922625,1779634242000,-191.0,0.0002,2]
[422922618,1779634242000,-176.16409662,0.000198,2]
[422922657,1779634242000,-168.09411827,0.000215,21]
[422922607,1779634242000,-10000.0,0.00019652,2]
[422922651,1779634242000,-191.0,0.00021,2]
[422922683,1779634242000,-786.65308131,0.00021848,2]
[422922690,1779634242000,-500.0,0.00021948,2]
[422922696,1779634242000,-4214.62,0.00021948,2]
[422922698,1779634242000,-500.0,0.00021948,2]
[422922697,1779634242000,-500.0,0.00021948,2]
[422922692,1779634242000,-546.98869963,0.00021948,2]
[422922695,1779634242000,-500.0,0.00021948,2]
[422922694,1779634242000,-500.0,0.00021948,2]
[422922700,1779634242000,-500.0,0.00021948,2]
[422922699,1779634242000,-500.0,0.00021948,2]
[422922701,1779634242000,-393.33,0.00022,10]
[422922702,1779634242000,-272.0,0.00022,2]
[422922704,1779634242000,-191.0,0.00022,2]
[422922682,1779634242000,-191.10191603,0.00021805,2]
[422922705,1779634242000,-216.0,0.00022,2]
[422922707,1779634242000,-2077.0,0.00022266,5]
[422922708,1779634242000,-151.0,0.00022353,2]
[422922706,1779634242000,-676.54,0.0002225,2]
[422922711,1779634242000,-385.99,0.00022648,2]
[422922709,1779634242000,-163.36,0.00022567,2]
[422922712,1779634242000,-172.74,0.00022678,2]
[422922719,1779634242000,-500.0,0.00022991,2]
[422922713,1779634242000,-424.27,0.00022691,2]
[422922716,1779634242000,-913.29201516,0.0002283,2]
[422922714,1779634242000,-9127.54,0.00022691,2]
[422922717,1779634242000,-676.54,0.00022885,2]
[422922722,1779634242000,-272.0,0.00023,2]
[422922658,1779634242000,-168.09411827,0.000215,21]
[422922710,1779634242000,-367.0,0.0002263,2]
[422922684,1779634242000,-500.0,0.000219,2]
[422922725,1779634242000,-191.0,0.00023,2]
[422922680,1779634242000,-500.0,0.00021776,2]
[422922659,1779634242000,-197.88086799,0.000215,21]
[422922661,1779634242000,-207.96654235,0.000215,21]
[422922652,1779634242000,-216.0,0.00021,2]
[422922660,1779634242000,-204.31244014,0.000215,21]
[422922663,1779634242000,-227.40655297,0.000215,21]
[422922653,1779634242000,-424.27,0.00021273,2]
[422922662,1779634242000,-179.27138751,0.000215,21]
[422922654,1779634242000,-9127.54,0.00021273,2]
[422922681,1779634242000,-152.857673,0.00021776,2]
[422922655,1779634242000,-226.71,0.00021273,2]
[422922665,1779634242000,-237.80894085,0.000215,21]
[422922664,1779634242000,-237.80894085,0.000215,21]
[422922666,1779634242000,-243.75879557,0.000215,21]
[422922672,1779634242000,-217.291355,0.00021725,2]
[422922656,1779634242000,-166.7,0.00021363,2]
[422922668,1779634242000,-162.784227,0.0002151,2]
[422922688,1779634242000,-2000.0,0.00021941,2]
[422922667,1779634242000,-174.903357,0.0002151,2]
[422922678,1779634242000,-500.0,0.00021776,2]
[422922679,1779634242000,-500.0,0.00021776,2]
[422922677,1779634242000,-500.0,0.00021776,2]
[422922676,1779634242000,-1315.32,0.00021776,2]
[422922686,1779634242000,-5000.0,0.00021918,2]
[422922670,1779634242000,-676.54,0.00021614,2]
[422922673,1779634242000,-151.0,0.00021774,2]
[422922674,1779634242000,-523.75497223,0.00021776,2]
[422922669,1779634242000,-200.13400693,0.00021586,2]
[422922671,1779634242000,-5444.72417774,0.00021723,2]
[422922675,1779634242000,-500.0,0.00021776,2]
[422922769,1779634243000,-2000.0,0.000266,2]
[422922775,1779634243000,-300.0,0.00026972,10]
[422922777,1779634243000,-500.0,0.00026973,2]
[422922771,1779634243000,-171.83,0.00026722,30]
[422922765,1779634243000,-2000.0,0.00026329,2]
[422922768,1779634243000,-248.21406472,0.00026513,39]
[422922757,1779634243000,-927.0,0.00025676,2]
[422922766,1779634243000,-151.0,0.00026486,7]
[422922767,1779634243000,-210.74570454,0.0002649,39]
[422922764,1779634243000,-151.0,0.00026296,2]
[422922763,1779634243000,-163.36,0.00025791,2]
[422922772,1779634243000,-1162.0,0.00026742,5]
[422922781,1779634243000,-500.0,0.00026973,2]
[422922776,1779634243000,-243.96433052,0.00026972,2]
[422922774,1779634243000,-300.0,0.00026972,10]
[422922773,1779634243000,-913.29201516,0.00026795,2]
[422922770,1779634243000,-171.83,0.00026722,30]
[422922778,1779634243000,-150.0,0.00026973,2]
[422922780,1779634243000,-150.0,0.00026973,2]
[422922788,1779634243000,-500.0,0.00026973,2]
[422922787,1779634243000,-500.0,0.00026973,2]
[422922790,1779634243000,-500.0,0.00026973,2]
[422922791,1779634243000,-500.0,0.00026973,2]
[422922793,1779634243000,-500.0,0.00026973,2]
[422922792,1779634243000,-357.67045328,0.00026973,2]
[422922762,1779634243000,-226.71,0.00025786,2]
[422922779,1779634243000,-500.0,0.00026973,2]
[422922759,1779634243000,-1271.0,0.00025676,2]
[422922755,1779634243000,-3551.113,0.00025676,2]
[422922761,1779634243000,-931.0,0.00025676,2]
[422922789,1779634243000,-244.44970555,0.00026973,2]
[422922733,1779634243000,-2299.0,0.00024,5]
[422922740,1779634243000,-2000.0,0.00024135,2]
[422922732,1779634243000,-6897.36322801,0.000239,2]
[422922737,1779634243000,-216.0,0.00024,2]
[422922738,1779634243000,-502.02650575,0.00024029,9]
[422922736,1779634243000,-191.0,0.00024,2]
[422922734,1779634243000,-272.0,0.00024,2]
[422922727,1779634243000,-216.0,0.00023,2]
[422922729,1779634243000,-676.54,0.00023521,2]
[422922741,1779634243000,-676.54,0.00024157,2]
[422922730,1779634243000,-5444.72417774,0.00023546,2]
[422922742,1779634243000,-151.0,0.00024324,2]
[422922750,1779634243000,-500.0,0.00025093,2]
[422922743,1779634243000,-158.41,0.00024658,2]
[422922754,1779634243000,-1000.0,0.000256,2]
[422922753,1779634243000,-5444.72417774,0.00025369,2]
[422922752,1779634243000,-500.0,0.00025093,2]
[422922751,1779634243000,-500.0,0.00025093,2]
[422922745,1779634243000,-275.0,0.00025,2]
[422922744,1779634243000,-1000.0,0.00024658,2]
[422922748,1779634243000,-917.36,0.0002504,2]
[422922746,1779634243000,-204.0,0.00025,2]
[422922749,1779634243000,-717.9,0.00025093,2]
[422922747,1779634243000,-226.0,0.00025,2]
[422922756,1779634243000,-625.0,0.00025676,2]
[422922758,1779634243000,-150.0,0.00025676,2]
[422922760,1779634243000,-3635.0,0.00025676,2]
[422922782,1779634243000,-500.0,0.00026973,2]
[422922784,1779634243000,-500.0,0.00026973,2]
[422922838,1779634243000,-500.0,0.00027294,2]
[422922823,1779634243000,-150.0,0.00026973,2]
[422922829,1779634243000,-166.68,0.00027049,2]
[422922836,1779634243000,-300.0,0.00027293,10]
[422922830,1779634243000,-1960.04,0.000271,2]
[422922837,1779634243000,-500.0,0.00027294,2]
[422922831,1779634243000,-5444.72417774,0.00027192,2]
[422922832,1779634243000,-8633.0,0.0002726,2]
[422922835,1779634243000,-300.0,0.00027293,10]
[422922839,1779634243000,-500.0,0.00027294,2]
[422922834,1779634243000,-300.0,0.00027293,10]
[422922833,1779634243000,-151.0,0.00027292,7]
[422922841,1779634243000,-500.0,0.00027294,2]
[422922840,1779634243000,-500.0,0.00027294,2]
[422922842,1779634243000,-395.3998277,0.00027294,2]
[422922852,1779634243000,-1315.32,0.00027294,2]
[422922854,1779634243000,-1315.32,0.00027294,2]
[422922851,1779634243000,-1315.32,0.00027294,2]
[422922853,1779634243000,-1315.32,0.00027294,2]
[422922843,1779634243000,-500.0,0.00027294,2]
[422922848,1779634243000,-1315.32,0.00027294,2]
[422922845,1779634243000,-500.28174121,0.00027294,2]
[422922847,1779634243000,-186.64364503,0.00027294,2]
[422922844,1779634243000,-500.0,0.00027294,2]
[422922846,1779634243000,-500.0,0.00027294,2]
[422922850,1779634243000,-1315.32,0.00027294,2]
[422922849,1779634243000,-1315.32,0.00027294,2]
[422922783,1779634243000,-157.0337685,0.00026973,2]
[422922821,1779634243000,-150.0,0.00026973,2]
[422922820,1779634243000,-150.0,0.00026973,2]
[422922828,1779634243000,-215.34753388,0.00027041,7]
[422922819,1779634243000,-200.0,0.00026973,2]
[422922785,1779634243000,-500.0,0.00026973,2]
[422922786,1779634243000,-500.0,0.00026973,2]
[422922794,1779634243000,-500.0,0.00026973,2]
[422922796,1779634243000,-500.0,0.00026973,2]
[422922798,1779634243000,-268.4459,0.00026973,2]
[422922801,1779634243000,-500.0,0.00026973,2]
[422922799,1779634243000,-500.0,0.00026973,2]
[422922797,1779634243000,-500.0,0.00026973,2]
[422922795,1779634243000,-500.0,0.00026973,2]
[422922826,1779634243000,-250.0,0.00026973,2]
[422922804,1779634243000,-500.0,0.00026973,2]
[422922803,1779634243000,-150.0,0.00026973,2]
[422922802,1779634243000,-500.0,0.00026973,2]
[422922806,1779634243000,-500.0,0.00026973,2]
[422922805,1779634243000,-150.0,0.00026973,2]
[422922800,1779634243000,-436.17191867,0.00026973,2]
[422922825,1779634243000,-150.0,0.00026973,2]
[422922810,1779634243000,-150.0,0.00026973,2]
[422922812,1779634243000,-297.8008769,0.00026973,2]
[422922813,1779634243000,-318.29697578,0.00026973,2]
[422922816,1779634243000,-150.0,0.00026973,2]
[422922807,1779634243000,-192.20233017,0.00026973,2]
[422922809,1779634243000,-500.0,0.00026973,2]
[422922818,1779634243000,-150.0,0.00026973,2]
[422922815,1779634243000,-179.29883903,0.00026973,2]
[422922817,1779634243000,-150.0,0.00026973,2]
[422922808,1779634243000,-150.0,0.00026973,2]
[422922811,1779634243000,-500.0,0.00026973,2]
[422922814,1779634243000,-150.0,0.00026973,2]
[422922903,1779634244000,-206.79,0.0002755,30]
[422922900,1779634244000,-216.44,0.0002755,2]
[422922906,1779634244000,-571.47,0.0002755,30]
[422922905,1779634244000,-216.45,0.0002755,2]
[422922902,1779634244000,-571.88,0.0002755,30]
[422922901,1779634244000,-216.5,0.0002755,2]
[422922888,1779634244000,-158.41,0.00027397,15]
[422922893,1779634244000,-300.0,0.0002742,10]
[422922887,1779634244000,-1500.0,0.00027397,2]
[422922895,1779634244000,-150.0,0.00027521,2]
[422922891,1779634244000,-300.0,0.0002742,10]
[422922896,1779634244000,-300.0,0.00027528,10]
[422922892,1779634244000,-300.0,0.0002742,10]
[422922904,1779634244000,-163.94,0.0002755,30]
[422922913,1779634244000,-571.88,0.00027711,7]
[422922897,1779634244000,-351.41551866,0.00027528,10]
[422922899,1779634244000,-4595.55094584,0.00027529,2]
[422922898,1779634244000,-10250.06301404,0.00027529,2]
[422922909,1779634244000,-288.0,0.00027584,10]
[422922917,1779634244000,-1960.04,0.000278,2]
[422922918,1779634244000,-163.94,0.0002784,7]
[422922920,1779634244000,-571.88,0.00027872,2]
[422922911,1779634244000,-1506.66,0.00027601,17]
[422922912,1779634244000,-174.469,0.00027601,17]
[422922908,1779634244000,-163.92,0.0002755,30]
[422922910,1779634244000,-151.0,0.0002759,7]
[422922919,1779634244000,-163.92,0.0002784,7]
[422922890,1779634244000,-6659.46,0.000274,14]
[422922907,1779634244000,-206.9,0.0002755,30]
[422922889,1779634244000,-2109.79,0.00027397,10]
[422922855,1779634244000,-1315.32,0.00027294,2]
[422922885,1779634244000,-300.0,0.00027396,10]
[422922861,1779634244000,-1315.32,0.00027294,2]
[422922862,1779634244000,-405.29129272,0.00027294,2]
[422922863,1779634244000,-202.32108796,0.00027294,2]
[422922866,1779634244000,-500.0,0.00027294,2]
[422922864,1779634244000,-500.0,0.00027294,2]
[422922868,1779634244000,-500.0,0.00027294,2]
[422922867,1779634244000,-500.0,0.00027294,2]
[422922865,1779634244000,-500.0,0.00027294,2]
[422922857,1779634244000,-500.0,0.00027294,2]
[422922856,1779634244000,-1315.32,0.00027294,2]
[422922859,1779634244000,-500.0,0.00027294,2]
[422922858,1779634244000,-1315.32,0.00027294,2]
[422922869,1779634244000,-500.0,0.00027294,2]
[422922883,1779634244000,-308.0,0.000273,2]
[422922872,1779634244000,-500.0,0.00027294,2]
[422922873,1779634244000,-500.0,0.00027294,2]
[422922875,1779634244000,-500.0,0.00027294,2]
[422922871,1779634244000,-500.0,0.00027294,2]
[422922874,1779634244000,-500.0,0.00027294,2]
[422922876,1779634244000,-500.0,0.00027294,2]
[422922877,1779634244000,-500.0,0.00027294,2]
[422922879,1779634244000,-500.0,0.00027294,2]
[422922878,1779634244000,-500.0,0.00027294,2]
[422922881,1779634244000,-315.0,0.000273,2]
[422922882,1779634244000,-200.0,0.000273,2]
[422922880,1779634244000,-476.99893723,0.00027294,2]
[422922894,1779634244000,-746.52,0.000275,7]
[422922886,1779634244000,-300.0,0.00027396,10]
[422922870,1779634244000,-500.0,0.00027294,2]
[422922916,1779634244000,-206.9,0.00027711,7]
[422922884,1779634244000,-1000.0,0.000273,2]
[422922914,1779634244000,-206.79,0.00027711,7]
[422922959,1779634244000,-725.02688317,0.000284,2]
[422922976,1779634244000,-172.77747418,0.00028725,7]
[422922957,1779634244000,-151.0,0.00028267,2]
[422922950,1779634244000,-500.0,0.00028226,120]
[422922954,1779634244000,-500.0,0.00028226,120]
[422922955,1779634244000,-7001.25344449,0.00028227,2]
[422922956,1779634244000,-152.0,0.00028236,7]
[422922963,1779634244000,-500.0,0.00028499,120]
[422922960,1779634244000,-163.94,0.0002842,30]
[422922962,1779634244000,-300.0,0.00028499,10]
[422922961,1779634244000,-163.92,0.0002842,30]
[422922964,1779634244000,-4214.62,0.00028499,2]
[422922965,1779634244000,-500.0,0.00028499,7]
[422922966,1779634244000,-4900.1,0.000285,2]
[422922967,1779634244000,-729.83296324,0.000285,2]
[422922968,1779634244000,-9800.19,0.000285,2]
[422922970,1779634244000,-150.0,0.00028516,2]
[422922972,1779634244000,-6659.46,0.000286,14]
[422922971,1779634244000,-1588.0,0.0002853,3]
[422922977,1779634244000,-152.42014882,0.00028726,7]
[422922978,1779634244000,-177.84047575,0.00028726,7]
[422922979,1779634244000,-156.0951259,0.00028726,7]
[422922980,1779634244000,-174.15950716,0.00028726,2]
[422922974,1779634244000,-931.0,0.00028676,2]
[422922982,1779634244000,-277.15676067,0.00028726,7]
[422922975,1779634244000,-718.41,0.000287,7]
[422922981,1779634244000,-225.48958234,0.00028726,7]
[422922973,1779634244000,-3635.0,0.00028676,2]
[422922915,1779634244000,-571.47,0.00027711,7]
[422922953,1779634244000,-217.28622726,0.00028226,120]
[422922952,1779634244000,-500.0,0.00028226,120]
[422922969,1779634244000,-1960.04,0.000285,2]
[422922951,1779634244000,-500.0,0.00028226,30]
[422922958,1779634244000,-191.10191603,0.00028358,2]
[422922921,1779634244000,-206.79,0.00027872,2]
[422922922,1779634244000,-571.47,0.00027872,2]
[422922923,1779634244000,-206.9,0.00027872,2]
[422922924,1779634244000,-200.0,0.000279,10]
[422922925,1779634244000,-439.58179,0.0002791,2]
[422922926,1779634244000,-439.58178,0.0002791,2]
[422922927,1779634244000,-439.58178,0.0002791,2]
[422922932,1779634244000,-152.0,0.00028002,7]
[422922931,1779634244000,-6659.46,0.00028,14]
[422922930,1779634244000,-5003.3059102,0.00028,2]
[422922929,1779634244000,-200.0,0.00027969,2]
[422922933,1779634244000,-571.88,0.00028033,30]
[422922938,1779634244000,-1881.8,0.00028082,7]
[422922928,1779634244000,-264.0,0.00027963,10]
[422922941,1779634244000,-163.92,0.0002813,2]
[422922949,1779634244000,-439.58179,0.00028195,2]
[422922939,1779634244000,-350.0,0.00028083,4]
[422922948,1779634244000,-439.58178,0.00028195,2]
[422922947,1779634244000,-439.58178,0.00028195,2]
[422922936,1779634244000,-206.9,0.00028033,30]
[422922934,1779634244000,-206.79,0.00028033,30]
[422922943,1779634244000,-206.79,0.00028194,7]
[422922937,1779634244000,-191.10191603,0.00028054,2]
[422922935,1779634244000,-571.47,0.00028033,30]
[422922942,1779634244000,-571.88,0.00028194,7]
[422922946,1779634244000,-178.0654254,0.00028195,2]
[422922945,1779634244000,-206.9,0.00028194,7]
[422922940,1779634244000,-163.94,0.0002813,2]
[422922944,1779634244000,-571.47,0.00028194,7]
[422923005,1779634245000,-201.69300175,0.00028999,120]
[422923007,1779634245000,-500.0,0.00028999,120]
[422923006,1779634245000,-717.9,0.00028999,120]
[422923004,1779634245000,-1315.32,0.00028999,30]
[422923002,1779634245000,-300.0,0.00028999,10]
[422923012,1779634245000,-500.0,0.00028999,120]
[422923009,1779634245000,-500.0,0.00028999,30]
[422923021,1779634245000,-294.0,0.00029,2]
[422923010,1779634245000,-4214.62,0.00028999,2]
[422923008,1779634245000,-500.0,0.00028999,120]
[422923014,1779634245000,-500.0,0.00028999,2]
[422923013,1779634245000,-500.0,0.00028999,7]
[422923015,1779634245000,-500.0,0.00028999,120]
[422923003,1779634245000,-500.0,0.00028999,120]
[422923017,1779634245000,-234.93511868,0.00029,2]
[422923011,1779634245000,-500.0,0.00028999,7]
[422923001,1779634245000,-151.0,0.00028997,7]
[422922986,1779634245000,-185.76376314,0.00028726,7]
[422922997,1779634245000,-400.0,0.000289,10]
[422923020,1779634245000,-856.15172823,0.00029,2]
[422922984,1779634245000,-305.00282452,0.00028726,7]
[422922983,1779634245000,-310.54573394,0.00028726,7]
[422922996,1779634245000,-150.0,0.00028897,2]
[422922985,1779634245000,-154.72225373,0.00028726,7]
[422922988,1779634245000,-3285.6576248,0.0002875,2]
[422922995,1779634245000,-188.0,0.00028869,2]
[422923000,1779634245000,-289.129686,0.00028954,10]
[422922993,1779634245000,-333.0,0.00028769,2]
[422922992,1779634245000,-176.69453663,0.00028756,7]
[422922987,1779634245000,-180.83663508,0.00028726,7]
[422922989,1779634245000,-185.71798506,0.00028755,7]
[422922990,1779634245000,-169.56128087,0.00028755,7]
[422922994,1779634245000,-2316.0,0.0002885,3]
[422922999,1779634245000,-291.0,0.00028947,2]
[422922998,1779634245000,-746.52,0.000289,7]
[422922991,1779634245000,-186.68576625,0.00028756,7]
[422923022,1779634245000,-3457.81722242,0.00029,2]
[422923041,1779634245000,-163.36,0.00029015,2]
[422923019,1779634245000,-206.9567288,0.00029,2]
[422923047,1779634245000,-300.0,0.00029099,10]
[422923018,1779634245000,-156.62341245,0.00029,2]
[422923040,1779634245000,-1574.0429054,0.00029002,2]
[422923042,1779634245000,-5444.72417774,0.00029016,2]
[422923039,1779634245000,-5800.0,0.00029002,2]
[422923048,1779634245000,-1315.32,0.00029099,30]
[422923049,1779634245000,-1315.32,0.00029099,30]
[422923050,1779634245000,-1315.32,0.00029099,30]
[422923051,1779634245000,-1315.32,0.00029099,30]
[422923052,1779634245000,-1315.39333977,0.00029099,30]
[422923053,1779634245000,-24500.49,0.000291,2]
[422923054,1779634245000,-4900.1,0.000291,2]
[422923055,1779634245000,-9800.19,0.000291,2]
[422923057,1779634245000,-1010.89217569,0.00027397,10]
[422923056,1779634245000,-1288.69849734,0.000291,2]
[422923045,1779634245000,-500.0,0.00029098,7]
[422923046,1779634245000,-500.0,0.00029098,2]
[422923043,1779634245000,-717.9,0.00029098,120]
[422923038,1779634245000,-200.0,0.00029,2]
[422923016,1779634245000,-6257.12956975,0.00029,30]
[422923024,1779634245000,-1090.0,0.00029,2]
[422923023,1779634245000,-676.0,0.00029,2]
[422923026,1779634245000,-70424.2444906,0.00029,2]
[422923044,1779634245000,-500.0,0.00029098,120]
[422923027,1779634245000,-2245.908,0.00029,2]
[422923028,1779634245000,-288.399994,0.00029,2]
[422923029,1779634245000,-1050.21653236,0.00029,2]
[422923025,1779634245000,-1589.0,0.00029,3]
[422923032,1779634245000,-503.0,0.00025082,2]
[422923031,1779634245000,-1444.18964626,0.00029,2]
[422923033,1779634245000,-503.0,0.00025728,2]
[422923037,1779634245000,-160.0,0.00029,2]
[422923036,1779634245000,-1881.8,0.00029,7]
[422923035,1779634245000,-1156.0,0.00029,2]
[422923034,1779634245000,-48260.02107975,0.00029,2]
[422923030,1779634245000,-96969.11987009,0.00029,2]
[422923066,1779634246000,-503.0,0.00027667,4]
[422923064,1779634246000,-121.14782431,0.0002755,2]
[422923062,1779634246000,-2601.82782431,0.00027397,10]
[422923058,1779634246000,-162.3,0.00024658,2]
[422923061,1779634246000,-120.0,0.0002702,4]
[422923060,1779634246000,-383.0,0.0002702,4]
[422923067,1779634246000,-525.0,0.00028033,10]
[422923063,1779634246000,-95.24217569,0.0002755,2]
[422923068,1779634246000,-503.0,0.00028313,5]
[422923059,1779634246000,-503.0,0.00026374,3]
[422923073,1779634246000,-2316.0,0.0002917,3]
[422923078,1779634246000,-1549.14,0.000292,14]
[422923076,1779634246000,-163.95,0.0002755,30]
[422923077,1779634246000,-206.91,0.00027711,7]
[422923065,1779634246000,-206.91,0.0002755,30]
[422923071,1779634246000,-671.34150266,0.000291,2]
[422923075,1779634246000,-3770.87028748,0.000292,14]
[422923074,1779634246000,-152.0,0.00029189,3]
[422923070,1779634246000,-500.0,0.00029,2]
[422923069,1779634246000,-503.0,0.00028959,6]
[422923072,1779634246000,-1589.0,0.0002917,3]
[422923082,1779634461000,2000.0,0.00027999,120]
[422923083,1779634640000,480.321948,0.0002763,120]
[422923084,1779634645000,359.28293,0.00027588,120]
[422923085,1779634647000,778.631972,0.0002752,120]
[422923087,1779634735000,178.569361,0.00026849,120]
[422923088,1779634787000,500.0,0.0002763,120]
[422923089,1779634812000,484.804656,0.00026433,120]
[422923090,1779634909000,231.708426,0.00026096,120]
[422923092,1779634917000,494.951699,0.00026096,120]
[422923097,1779635004000,189.695631,0.00025904,120]
[422923098,1779635009000,239.155189,0.00025904,120]
[422923099,1779635024000,242.402328,0.00025904,120]
[422923101,1779635058000,196.011097,0.0002527,120]
[422923103,1779635201000,238.277692,0.00023838,120]
[422923104,1779635202000,555.17,7.043e-05,2]
[422923107,1779635203000,555.17,7.785e-05,2]
[422923106,1779635203000,57.35268701,7.414e-05,2]
[422923105,1779635203000,497.81731299,7.414e-05,2]
[422923153,1779635432000,-13159.0,0.00011985,2]
[422923163,1779635432000,-555.17,0.00013716,2]
[422923152,1779635432000,-257.47106309,0.00011985,2]
[422923137,1779635432000,-74.12303446,0.00011863,2]
[422923158,1779635432000,-1923.3,0.00013112,2]
[422923159,1779635432000,-187.0,0.00013155,2]
[422923155,1779635432000,-555.17,0.00012604,2]
[422923157,1779635432000,-555.17,0.00012975,2]
[422923160,1779635432000,-555.17,0.00013345,2]
[422923161,1779635432000,-165.21,0.00013699,2]
[422923162,1779635432000,-826.09,0.00013699,2]
[422923164,1779635432000,-250.0,0.00014,2]
[422923171,1779635432000,-200.0,0.000147,5]
[422923168,1779635432000,-455.09,0.00014401,2]
[422923167,1779635432000,-185.74,0.00014282,2]
[422923169,1779635432000,-374.13,0.00014497,2]
[422923154,1779635432000,-555.17,0.00012233,2]
[422923141,1779635432000,-241.49522616,0.00011876,2]
[422923124,1779635432000,-555.17,0.00010009,2]
[422923150,1779635432000,-1761.41983904,0.00011877,2]
[422923119,1779635432000,-555.17,8.526e-05,2]
[422923118,1779635432000,-555.17,8.155e-05,2]
[422923120,1779635432000,-555.17,8.897e-05,2]
[422923122,1779635432000,-445.88882091,9.638e-05,2]
[422923126,1779635432000,-163.48,0.0001075,2]
[422923121,1779635432000,-555.17,9.268e-05,2]
[422923166,1779635432000,-917.36,0.00014134,2]
[422923123,1779635432000,-109.28117909,9.638e-05,2]
[422923151,1779635432000,-300.0,0.00011983,2]
[422923125,1779635432000,-555.17,0.0001038,2]
[422923129,1779635432000,-390.86873626,0.0001075,2]
[422923131,1779635432000,-251.16392857,0.00011121,2]
[422923133,1779635432000,-304.00607143,0.00011121,2]
[422923143,1779635432000,-173.50477384,0.00011876,2]
[422923145,1779635432000,-242.57217183,0.00011877,2]
[422923139,1779635432000,-481.04696554,0.00011863,2]
[422923148,1779635432000,-1693.00798913,0.00011877,2]
[422923135,1779635432000,-555.17,0.00011492,2]
[422923127,1779635432000,-164.30126374,0.0001075,2]
[422923165,1779635432000,-555.17,0.00014087,2]
[422923156,1779635432000,-15562.62,0.00012812,2]
[422923174,1779635432000,-215.09191753,0.00014723,2]
[422923199,1779635432000,-500.0,0.00014798,2]
[422923196,1779635432000,-500.0,0.00014798,2]
[422923193,1779635432000,-500.0,0.00014798,2]
[422923194,1779635432000,-500.0,0.00014798,2]
[422923195,1779635432000,-500.0,0.00014798,2]
[422923198,1779635432000,-500.0,0.00014798,2]
[422923192,1779635432000,-500.0,0.00014798,2]
[422923203,1779635432000,-500.0,0.00014798,2]
[422923202,1779635432000,-500.0,0.00014798,2]
[422923211,1779635432000,-500.0,0.00014798,2]
[422923206,1779635432000,-500.0,0.00014798,2]
[422923209,1779635432000,-500.0,0.00014798,2]